[Event "Early-Titled-Tuesday-Blitz-May-28-2024"]
[Site "Chess.com"]
[Date "2024.05.28"]
[Round "3"]
[White "Chessbard1972"]
[Black "Herzog2012"]
[Result "1/2-1/2"]
[WhiteElo "2417"]
[BlackElo "2600"]
[TimeControl "180+1"]
[EndTime "8:29:25 PDT"]
[Termination "Game drawn - insufficient material"]

1. e4 {[%clk 0:03:00.9]} 1... c5 {[%clk 0:02:56.6]} 2. d4 {[%clk 0:02:59.1]}
2... cxd4 {[%clk 0:02:55.9]} 3. c3 {[%clk 0:02:59.5]} 3... Nf6 {[%clk
0:02:54.4]} 4. e5 {[%clk 0:02:59]} 4... Nd5 {[%clk 0:02:54.5]} 5. Bc4 {[%clk
0:02:59.5]} 5... Nb6 {[%clk 0:02:47.3]} 6. Bb3 {[%clk 0:02:58.1]} 6... Nc6
{[%clk 0:02:31.3]} 7. Nf3 {[%clk 0:02:56.3]} 7... d6 {[%clk 0:02:31.1]} 8. exd6
{[%clk 0:02:53.1]} 8... Qxd6 {[%clk 0:02:32]} 9. cxd4 {[%clk 0:02:52.3]} 9...
Be6 {[%clk 0:02:17.6]} 10. Nc3 {[%clk 0:02:44.4]} 10... Bxb3 {[%clk 0:02:07.4]}
11. axb3 {[%clk 0:02:44]} 11... e6 {[%clk 0:02:06.3]} 12. O-O {[%clk 0:02:41.9]}
12... Be7 {[%clk 0:02:04.8]} 13. Nb5 {[%clk 0:02:39.7]} 13... Qd7 {[%clk
0:02:02.2]} 14. Bf4 {[%clk 0:02:25.7]} 14... Nd5 {[%clk 0:01:59.6]} 15. Bg3
{[%clk 0:02:25.6]} 15... O-O {[%clk 0:01:56.8]} 16. Re1 {[%clk 0:02:24.3]} 16...
a6 {[%clk 0:01:49.2]} 17. Nc3 {[%clk 0:02:22.8]} 17... Rac8 {[%clk 0:01:44.2]}
18. Ne4 {[%clk 0:02:21]} 18... f6 {[%clk 0:01:40.7]} 19. Rc1 {[%clk 0:02:17.7]}
19... Ncb4 {[%clk 0:01:38.7]} 20. Qe2 {[%clk 0:02:12.8]} 20... Qb5 {[%clk
0:01:32.2]} 21. Rc4 {[%clk 0:01:53]} 21... Nb6 {[%clk 0:01:22.3]} 22. Nc5 {[%clk
0:01:45.7]} 22... e5 {[%clk 0:00:35.9]} 23. Rcc1 {[%clk 0:01:21.9]} 23... Qxe2
{[%clk 0:00:28.4]} 24. Rxe2 {[%clk 0:01:21.8]} 24... Bxc5 {[%clk 0:00:26.1]} 25.
Rxc5 {[%clk 0:01:14.2]} 25... Rxc5 {[%clk 0:00:13.6]} 26. dxc5 {[%clk
0:01:13.9]} 26... Nd7 {[%clk 0:00:11.6]} 27. Re4 {[%clk 0:01:11.4]} 27... a5
{[%clk 0:00:08.9]} 28. Rc4 {[%clk 0:01:10.1]} 28... Rc8 {[%clk 0:00:08.2]} 29.
Nd2 {[%clk 0:01:05.2]} 29... Rxc5 {[%clk 0:00:07.7]} 30. f4 {[%clk 0:01:04]}
30... Rxc4 {[%clk 0:00:05.7]} 31. bxc4 {[%clk 0:01:03.1]} 31... Kf7 {[%clk
0:00:04]} 32. Ne4 {[%clk 0:01:02.3]} 32... Ke6 {[%clk 0:00:03.5]} 33. f5+ {[%clk
0:01:01.4]} 33... Kxf5 {[%clk 0:00:03.3]} 34. Nd6+ {[%clk 0:01:01.5]} 34... Ke6
{[%clk 0:00:03.8]} 35. Nxb7 {[%clk 0:01:02.3]} 35... f5 {[%clk 0:00:03.6]} 36.
Nxa5 {[%clk 0:01:01.3]} 36... f4 {[%clk 0:00:03.6]} 37. Bf2 {[%clk 0:01:01.5]}
37... e4 {[%clk 0:00:03.4]} 38. Bd4 {[%clk 0:01:00.7]} 38... g5 {[%clk 0:00:03]}
39. h3 {[%clk 0:00:57.9]} 39... e3 {[%clk 0:00:02.9]} 40. Kf1 {[%clk 0:00:57.8]}
40... Kf5 {[%clk 0:00:03.2]} 41. c5 {[%clk 0:00:54.9]} 41... Ke4 {[%clk
0:00:02.9]} 42. c6 {[%clk 0:00:55.3]} 42... Nxc6 {[%clk 0:00:01.5]} 43. Nxc6
{[%clk 0:00:54.7]} 43... Kd5 {[%clk 0:00:02.1]} 44. Ke2 {[%clk 0:00:42.9]} 44...
Kxc6 {[%clk 0:00:02]} 45. b3 {[%clk 0:00:39.1]} 45... Kd5 {[%clk 0:00:02.3]} 46.
Bc3 {[%clk 0:00:39.4]} 46... Ke4 {[%clk 0:00:02.6]} 47. b4 {[%clk 0:00:38.4]}
47... h5 {[%clk 0:00:02.4]} 48. b5 {[%clk 0:00:38.4]} 48... g4 {[%clk
0:00:02.8]} 49. hxg4 {[%clk 0:00:37.9]} 49... hxg4 {[%clk 0:00:02.9]} 50. Ba5
{[%clk 0:00:37.7]} 50... f3+ {[%clk 0:00:03.3]} 51. gxf3+ {[%clk 0:00:38.2]}
51... gxf3+ {[%clk 0:00:04.2]} 52. Kf1 {[%clk 0:00:38]} 52... Kd5 {[%clk
0:00:03.6]} 53. b6 {[%clk 0:00:37.5]} 53... Kc6 {[%clk 0:00:03.8]} 54. Bc3
{[%clk 0:00:31.3]} 54... Nxb6 {[%clk 0:00:02.4]} 55. Bd4 {[%clk 0:00:31.7]}
55... e2+ {[%clk 0:00:02.5]} 56. Kf2 {[%clk 0:00:31.9]} 56... Nc4 {[%clk
0:00:02.4]} 57. Bc3 {[%clk 0:00:32.1]} 57... Na3 {[%clk 0:00:01]} 58. Be1 {[%clk
0:00:30.8]} 58... Nb5 {[%clk 0:00:01.9]} 59. Kxf3 {[%clk 0:00:30.3]} 59... Kc5
{[%clk 0:00:02.5]} 60. Kxe2 {[%clk 0:00:30.6]} 1/2-1/2

[Event "Early-Titled-Tuesday-Blitz-May-28-2024"]
[Site "Chess.com"]
[Date "2024.05.28"]
[Round "3"]
[White "Slovineanu"]
[Black "mindprogress732"]
[Result "1-0"]
[WhiteElo "2554"]
[BlackElo "2164"]
[TimeControl "180+1"]
[EndTime "8:29:25 PDT"]
[Termination "Slovineanu won by resignation"]

1. d4 {[%clk 0:03:00.9]} 1... d6 {[%clk 0:02:59.9]} 2. e4 {[%clk 0:02:59.1]}
2... f5 {[%clk 0:02:59.6]} 3. exf5 {[%clk 0:02:55.2]} 3... Nf6 {[%clk
0:02:59.4]} 4. Bd3 {[%clk 0:02:55]} 4... Nc6 {[%clk 0:02:58.8]} 5. Nf3 {[%clk
0:02:54.3]} 5... Bd7 {[%clk 0:02:51.7]} 6. c4 {[%clk 0:02:52]} 6... Qc8 {[%clk
0:02:51.5]} 7. Nh4 {[%clk 0:02:47.6]} 7... Nxd4 {[%clk 0:02:48]} 8. O-O {[%clk
0:02:43.6]} 8... Nxf5 {[%clk 0:02:47.4]} 9. Nxf5 {[%clk 0:02:42.5]} 9... Bxf5
{[%clk 0:02:48.3]} 10. Nc3 {[%clk 0:02:42.1]} 10... g6 {[%clk 0:02:44.9]} 11.
Re1 {[%clk 0:02:38.6]} 11... Bg7 {[%clk 0:02:42.8]} 12. Bg5 {[%clk 0:02:37.9]}
12... e5 {[%clk 0:02:41.4]} 13. f4 {[%clk 0:02:28.7]} 13... O-O {[%clk
0:02:38.7]} 14. fxe5 {[%clk 0:02:25.2]} 14... Ng4 {[%clk 0:02:38.7]} 15. Nd5
{[%clk 0:02:06.3]} 15... Kh8 {[%clk 0:02:25.4]} 16. Ne7 {[%clk 0:01:58.6]} 16...
Qd7 {[%clk 0:02:22.4]} 17. Nxf5 {[%clk 0:01:59]} 17... gxf5 {[%clk 0:02:23.3]}
18. Be2 {[%clk 0:00:54.7]} 18... Bxe5 {[%clk 0:01:36.5]} 19. Bxg4 {[%clk
0:00:50.2]} 19... fxg4 {[%clk 0:01:37.4]} 20. Rxe5 {[%clk 0:00:48.9]} 20... Qg7
{[%clk 0:01:36.2]} 21. Rd5 {[%clk 0:00:40.7]} 21... c6 {[%clk 0:01:36.1]} 22.
Bd2 {[%clk 0:00:40.2]} 22... cxd5 {[%clk 0:00:53.8]} 23. Bc3 {[%clk 0:00:40.4]}
23... d4 {[%clk 0:00:53.6]} 24. Bxd4 {[%clk 0:00:37.3]} 24... Rf6 {[%clk
0:00:53.8]} 25. Qd2 {[%clk 0:00:23.2]} 25... Raf8 {[%clk 0:00:43.3]} 26. Re1
{[%clk 0:00:20.3]} 26... Kg8 {[%clk 0:00:38.6]} 27. Bxf6 {[%clk 0:00:18.5]}
27... Qxf6 {[%clk 0:00:39.5]} 28. Qd5+ {[%clk 0:00:18.1]} 28... Qf7 {[%clk
0:00:36.1]} 29. Rd1 {[%clk 0:00:12.9]} 29... Rd8 {[%clk 0:00:30.4]} 30. g3
{[%clk 0:00:10.5]} 30... Qxd5 {[%clk 0:00:28.7]} 31. Rxd5 {[%clk 0:00:10.6]}
31... Kf7 {[%clk 0:00:28.8]} 32. Kf2 {[%clk 0:00:10.9]} 32... Ke6 {[%clk
0:00:28.5]} 33. Ke3 {[%clk 0:00:11.2]} 33... Rf8 {[%clk 0:00:28.3]} 34. Rg5
{[%clk 0:00:11.4]} 34... Rf3+ {[%clk 0:00:26.2]} 35. Ke2 {[%clk 0:00:11]} 35...
Rf5 {[%clk 0:00:21.3]} 36. Rxg4 {[%clk 0:00:10.5]} 36... Ra5 {[%clk 0:00:21.9]}
37. a3 {[%clk 0:00:10.2]} 37... Re5+ {[%clk 0:00:21.6]} 38. Kd3 {[%clk
0:00:09.5]} 38... Rf5 {[%clk 0:00:21.8]} 39. Rf4 {[%clk 0:00:08.9]} 39... Rh5
{[%clk 0:00:19.4]} 40. h4 {[%clk 0:00:08.9]} 40... Rh6 {[%clk 0:00:17.1]} 41. b4
{[%clk 0:00:08.4]} 41... Rg6 {[%clk 0:00:17.3]} 42. g4 {[%clk 0:00:08.5]} 42...
a6 {[%clk 0:00:15.4]} 43. g5 {[%clk 0:00:07.6]} 43... h6 {[%clk 0:00:14.9]} 44.
Rg4 {[%clk 0:00:07]} 44... hxg5 {[%clk 0:00:13.8]} 45. hxg5 {[%clk 0:00:07.4]}
45... Ke5 {[%clk 0:00:13.2]} 46. Ke3 {[%clk 0:00:06.7]} 46... Re6 {[%clk
0:00:11.5]} 47. Re4+ {[%clk 0:00:06.1]} 47... Kf5 {[%clk 0:00:11.8]} 48. Rxe6
{[%clk 0:00:06.8]} 48... Kxe6 {[%clk 0:00:12.7]} 49. Kf4 {[%clk 0:00:07]} 49...
Kf7 {[%clk 0:00:09]} 50. Kf5 {[%clk 0:00:07.1]} 50... Kg7 {[%clk 0:00:09]} 51.
Ke6 {[%clk 0:00:07.1]} 1-0

[Event "Early-Titled-Tuesday-Blitz-May-28-2024"]
[Site "Chess.com"]
[Date "2024.05.28"]
[Round "3"]
[White "BardArtem"]
[Black "CristianS27"]
[Result "1-0"]
[WhiteElo "2810"]
[BlackElo "2521"]
[TimeControl "180+1"]
[EndTime "8:29:27 PDT"]
[Termination "BardArtem won on time"]

1. Nf3 {[%clk 0:03:00.9]} 1... Nf6 {[%clk 0:02:59.7]} 2. b3 {[%clk 0:03:00.3]}
2... g6 {[%clk 0:02:58.8]} 3. Bb2 {[%clk 0:03:00.2]} 3... Bg7 {[%clk 0:02:59.3]}
4. e3 {[%clk 0:03:00.1]} 4... O-O {[%clk 0:02:59.8]} 5. c4 {[%clk 0:03:00.4]}
5... c5 {[%clk 0:02:59.3]} 6. Be2 {[%clk 0:03:00]} 6... Nc6 {[%clk 0:02:59.6]}
7. O-O {[%clk 0:02:59.5]} 7... d6 {[%clk 0:03:00.2]} 8. d4 {[%clk 0:02:59.6]}
8... cxd4 {[%clk 0:03:00.5]} 9. Nxd4 {[%clk 0:02:56.9]} 9... Nxd4 {[%clk
0:02:54.7]} 10. Bxd4 {[%clk 0:02:54.4]} 10... Bf5 {[%clk 0:02:52.4]} 11. Bf3
{[%clk 0:02:52.3]} 11... Qd7 {[%clk 0:02:47.2]} 12. Bb2 {[%clk 0:02:45.5]} 12...
Rac8 {[%clk 0:02:37.9]} 13. Nc3 {[%clk 0:02:44.6]} 13... Bg4 {[%clk 0:02:29.7]}
14. Nd5 {[%clk 0:02:19.8]} 14... Bxf3 {[%clk 0:02:20.3]} 15. Qxf3 {[%clk
0:02:20.7]} 15... Nxd5 {[%clk 0:02:18.2]} 16. Bxg7 {[%clk 0:02:21.5]} 16... Kxg7
{[%clk 0:02:00.2]} 17. Qxd5 {[%clk 0:02:21]} 17... Qc6 {[%clk 0:01:56.3]} 18.
Qd4+ {[%clk 0:02:21]} 18... f6 {[%clk 0:01:52.2]} 19. Qxa7 {[%clk 0:02:19.7]}
19... Ra8 {[%clk 0:01:45.7]} 20. Qd4 {[%clk 0:02:16.1]} 20... Ra3 {[%clk
0:01:45.2]} 21. Rfd1 {[%clk 0:02:07.1]} 21... Rfa8 {[%clk 0:01:46.1]} 22. Qb2
{[%clk 0:01:58]} 22... Qc5 {[%clk 0:01:25.4]} 23. h3 {[%clk 0:01:50.2]} 23...
Qe5 {[%clk 0:01:21.5]} 24. Qc2 {[%clk 0:01:42.2]} 24... Qa5 {[%clk 0:01:15.6]}
25. Rd5 {[%clk 0:01:34.5]} 25... Qb6 {[%clk 0:00:56.1]} 26. Rb5 {[%clk
0:01:31.5]} 26... Qa6 {[%clk 0:00:46.8]} 27. Qd2 {[%clk 0:01:24.3]} 27... Rxa2
{[%clk 0:00:28.4]} 28. Rxa2 {[%clk 0:01:25.2]} 28... Qxa2 {[%clk 0:00:28.9]} 29.
Qxa2 {[%clk 0:01:26.1]} 29... Rxa2 {[%clk 0:00:29.3]} 30. Rxb7 {[%clk 0:01:27]}
30... Kf7 {[%clk 0:00:29.5]} 31. g3 {[%clk 0:01:23.4]} 31... Ke6 {[%clk
0:00:27.1]} 32. Kg2 {[%clk 0:01:22.8]} 32... h5 {[%clk 0:00:27.3]} 33. Rb6
{[%clk 0:01:22.2]} 33... Kd7 {[%clk 0:00:25.6]} 34. h4 {[%clk 0:01:22.6]} 34...
Rb2 {[%clk 0:00:25.2]} 35. Rb8 {[%clk 0:01:22.4]} 35... Kc7 {[%clk 0:00:23.4]}
36. Rg8 {[%clk 0:01:19.4]} 36... Rxb3 {[%clk 0:00:22.8]} 37. Rxg6 {[%clk
0:01:20]} 37... Rc3 {[%clk 0:00:22.1]} 38. Rh6 {[%clk 0:01:20.2]} 38... Rxc4
{[%clk 0:00:21.7]} 39. Rxh5 {[%clk 0:01:20.8]} 39... Kd7 {[%clk 0:00:21.9]} 40.
Rh8 {[%clk 0:01:20.2]} 40... Ke6 {[%clk 0:00:21.9]} 41. Kf3 {[%clk 0:01:17.7]}
41... Ra4 {[%clk 0:00:21.3]} 42. g4 {[%clk 0:01:08.8]} 42... Kf7 {[%clk
0:00:20.7]} 43. Rh7+ {[%clk 0:01:08]} 43... Ke6 {[%clk 0:00:19.7]} 44. h5 {[%clk
0:01:02.5]} 44... d5 {[%clk 0:00:12.8]} 45. h6 {[%clk 0:01:01]} 45... d4 {[%clk
0:00:13.1]} 46. exd4 {[%clk 0:00:59.1]} 46... Rxd4 {[%clk 0:00:14]} 47. Rg7
{[%clk 0:00:53.7]} 47... Rd1 {[%clk 0:00:09.9]} 48. Kg2 {[%clk 0:00:53.3]} 48...
Rd8 {[%clk 0:00:07.4]} 49. h7 {[%clk 0:00:53.4]} 49... Rh8 {[%clk 0:00:07.1]}
50. f4 {[%clk 0:00:49.3]} 50... Kd6 {[%clk 0:00:04.1]} 51. Kf3 {[%clk 0:00:44]}
51... e5 {[%clk 0:00:01.6]} 52. g5 {[%clk 0:00:29.9]} 52... fxg5 {[%clk
0:00:01.9]} 53. fxg5 {[%clk 0:00:30.8]} 53... Ke6 {[%clk 0:00:02.2]} 54. g6
{[%clk 0:00:31]} 54... Kf6 {[%clk 0:00:02.7]} 55. Rg8 {[%clk 0:00:31.5]} 55...
e4+ {[%clk 0:00:01]} 56. Kxe4 {[%clk 0:00:29.9]} 56... Rxh7 {[%clk 0:00:01.6]}
57. gxh7 {[%clk 0:00:29.8]} 1-0

[Event "Early-Titled-Tuesday-Blitz-May-28-2024"]
[Site "Chess.com"]
[Date "2024.05.28"]
[Round "3"]
[White "Alex_Sahakyan2006"]
[Black "DishonorOnYourCow"]
[Result "0-1"]
[WhiteElo "2848"]
[BlackElo "2596"]
[TimeControl "180+1"]
[EndTime "8:29:28 PDT"]
[Termination "DishonorOnYourCow won by checkmate"]

1. e4 {[%clk 0:03:00.9]} 1... c5 {[%clk 0:02:59.2]} 2. Nf3 {[%clk 0:03:00.9]}
2... d6 {[%clk 0:02:58.8]} 3. Nc3 {[%clk 0:03:01.1]} 3... a6 {[%clk 0:02:58.7]}
4. g3 {[%clk 0:02:59.9]} 4... Nc6 {[%clk 0:02:58.2]} 5. Bg2 {[%clk 0:02:59.7]}
5... g6 {[%clk 0:02:53.7]} 6. d4 {[%clk 0:02:59]} 6... cxd4 {[%clk 0:02:53.4]}
7. Nxd4 {[%clk 0:02:59.9]} 7... Bg7 {[%clk 0:02:52.2]} 8. Be3 {[%clk 0:03:00.4]}
8... Bd7 {[%clk 0:02:42.3]} 9. O-O {[%clk 0:02:59.7]} 9... Nf6 {[%clk 0:02:42]}
10. h3 {[%clk 0:03:00]} 10... O-O {[%clk 0:02:41.5]} 11. a4 {[%clk 0:02:56.6]}
11... Rc8 {[%clk 0:02:36.3]} 12. Nxc6 {[%clk 0:02:50.4]} 12... Bxc6 {[%clk
0:02:28.8]} 13. a5 {[%clk 0:02:49.4]} 13... Nd7 {[%clk 0:02:22.1]} 14. Bd4
{[%clk 0:02:44]} 14... e5 {[%clk 0:01:56.5]} 15. Be3 {[%clk 0:02:42]} 15... Nc5
{[%clk 0:01:56.9]} 16. Nd5 {[%clk 0:02:34.3]} 16... f5 {[%clk 0:01:49.4]} 17.
exf5 {[%clk 0:02:31.3]} 17... gxf5 {[%clk 0:01:48.5]} 18. f4 {[%clk 0:02:24.9]}
18... e4 {[%clk 0:01:41.8]} 19. Nb6 {[%clk 0:02:05.3]} 19... Rc7 {[%clk
0:01:25.9]} 20. Nc4 {[%clk 0:02:03.8]} 20... Bb5 {[%clk 0:01:25.6]} 21. Qd5+
{[%clk 0:01:50.8]} 21... Kh8 {[%clk 0:01:25.1]} 22. Rfd1 {[%clk 0:01:48.1]}
22... Na4 {[%clk 0:01:03.7]} 23. Nxd6 {[%clk 0:01:42.5]} 23... Rd7 {[%clk
0:00:55.3]} 24. Bd4 {[%clk 0:01:10.7]} 24... Qe7 {[%clk 0:00:27.3]} 25. Bxg7+
{[%clk 0:00:54]} 25... Qxg7 {[%clk 0:00:28.2]} 26. Rd4 {[%clk 0:00:19.7]} 26...
Bc6 {[%clk 0:00:14.9]} 27. Qe5 {[%clk 0:00:19.5]} 27... Nxb2 {[%clk 0:00:06.9]}
28. Rb1 {[%clk 0:00:17.1]} 28... Na4 {[%clk 0:00:06.8]} 29. c4 {[%clk
0:00:14.8]} 29... Nc3 {[%clk 0:00:06.5]} 30. Rb2 {[%clk 0:00:14]} 30... Re7
{[%clk 0:00:03.8]} 31. Qxg7+ {[%clk 0:00:13.8]} 31... Kxg7 {[%clk 0:00:04.4]}
32. g4 {[%clk 0:00:06.7]} 32... e3 {[%clk 0:00:04]} 33. Nxf5+ {[%clk 0:00:07.2]}
33... Rxf5 {[%clk 0:00:03.4]} 34. gxf5 {[%clk 0:00:07.6]} 34... e2 {[%clk
0:00:03.6]} 35. f6+ {[%clk 0:00:07.5]} 35... Kxf6 {[%clk 0:00:03.3]} 36. Rd6+
{[%clk 0:00:01]} 36... Kg7 {[%clk 0:00:03.1]} 37. f5 {[%clk 0:00:01]} 37...
e1=Q+ {[%clk 0:00:02.7]} 38. Bf1 {[%clk 0:00:01.9]} 38... Qg3+ {[%clk
0:00:02.7]} 39. Rg2 {[%clk 0:00:02.2]} 39... Bxg2 {[%clk 0:00:02.3]} 40. f6+
{[%clk 0:00:03]} 40... Kf7 {[%clk 0:00:01.7]} 41. Bxg2 {[%clk 0:00:03.6]} 41...
Qxd6 {[%clk 0:00:01.5]} 42. fxe7 {[%clk 0:00:03.8]} 42... Qxe7 {[%clk
0:00:02.3]} 43. c5 {[%clk 0:00:04.2]} 43... Qxc5+ {[%clk 0:00:02.8]} 44. Kh1
{[%clk 0:00:05]} 44... Qxa5 {[%clk 0:00:03.6]} 45. Bxb7 {[%clk 0:00:05.5]} 45...
Qa1+ {[%clk 0:00:04.5]} 46. Kh2 {[%clk 0:00:05.9]} 46... Ne2 {[%clk 0:00:05.3]}
47. Bg2 {[%clk 0:00:06.5]} 47... Nd4 {[%clk 0:00:06.2]} 48. Bd5+ {[%clk
0:00:06.7]} 48... Ke7 {[%clk 0:00:06]} 49. Be4 {[%clk 0:00:07.6]} 49... Qc1
{[%clk 0:00:05.5]} 50. Kg3 {[%clk 0:00:08.1]} 50... Qe3+ {[%clk 0:00:05.9]} 51.
Kg4 {[%clk 0:00:08.1]} 51... Qxe4+ {[%clk 0:00:06.3]} 52. Kh5 {[%clk 0:00:09]}
52... Qf5+ {[%clk 0:00:06.2]} 53. Kh4 {[%clk 0:00:09.9]} 53... Qf4+ {[%clk
0:00:04.7]} 54. Kh5 {[%clk 0:00:10.4]} 54... Ne6 {[%clk 0:00:04.4]} 55. h4
{[%clk 0:00:10.4]} 55... Qf5+ {[%clk 0:00:04.8]} 56. Kh6 {[%clk 0:00:10.8]}
56... Qg6# {[%clk 0:00:05.4]} 0-1

[Event "Early-Titled-Tuesday-Blitz-May-28-2024"]
[Site "Chess.com"]
[Date "2024.05.28"]
[Round "3"]
[White "NikFil2013"]
[Black "aghasiyevkamal"]
[Result "0-1"]
[WhiteElo "2454"]
[BlackElo "2639"]
[TimeControl "180+1"]
[EndTime "8:29:28 PDT"]
[Termination "aghasiyevkamal won by resignation"]

1. d4 {[%clk 0:03:00.9]} 1... d5 {[%clk 0:02:58.9]} 2. c4 {[%clk 0:03:01.1]}
2... e6 {[%clk 0:02:58.8]} 3. Nc3 {[%clk 0:03:01.3]} 3... Nf6 {[%clk 0:02:59]}
4. cxd5 {[%clk 0:03:00.6]} 4... exd5 {[%clk 0:02:58.7]} 5. Bg5 {[%clk
0:03:00.8]} 5... Nbd7 {[%clk 0:02:58]} 6. e3 {[%clk 0:03:00.6]} 6... c6 {[%clk
0:02:57.9]} 7. Bd3 {[%clk 0:03:00.4]} 7... Be7 {[%clk 0:02:58.1]} 8. Qc2 {[%clk
0:03:00.2]} 8... h6 {[%clk 0:02:57.9]} 9. Bh4 {[%clk 0:02:59.9]} 9... Nh5 {[%clk
0:02:57.5]} 10. Bxe7 {[%clk 0:02:58.4]} 10... Qxe7 {[%clk 0:02:57.6]} 11. Nge2
{[%clk 0:02:58.8]} 11... Nb6 {[%clk 0:02:56.3]} 12. O-O-O {[%clk 0:02:55.4]}
12... Bd7 {[%clk 0:02:51.1]} 13. Rhg1 {[%clk 0:02:42.5]} 13... O-O-O {[%clk
0:02:49]} 14. Ng3 {[%clk 0:02:19.3]} 14... Nxg3 {[%clk 0:02:43.7]} 15. hxg3
{[%clk 0:02:20.2]} 15... Kb8 {[%clk 0:02:42.9]} 16. Kb1 {[%clk 0:02:19.6]} 16...
Qf6 {[%clk 0:02:37.9]} 17. Rgf1 {[%clk 0:02:17.6]} 17... Rc8 {[%clk 0:02:35.3]}
18. Na4 {[%clk 0:02:07.3]} 18... Nxa4 {[%clk 0:02:30]} 19. Qxa4 {[%clk
0:02:08.2]} 19... Bf5 {[%clk 0:02:29.1]} 20. Bxf5 {[%clk 0:01:48.5]} 20... Qxf5+
{[%clk 0:02:29.1]} 21. Qc2 {[%clk 0:01:48.6]} 21... Qxc2+ {[%clk 0:02:26.7]} 22.
Kxc2 {[%clk 0:01:49.5]} 22... h5 {[%clk 0:02:21.9]} 23. Rh1 {[%clk 0:01:41.4]}
23... Rh6 {[%clk 0:02:16.3]} 24. Kd3 {[%clk 0:01:35.7]} 24... Re8 {[%clk
0:02:12.2]} 25. Rh2 {[%clk 0:01:09.6]} 25... Rf6 {[%clk 0:02:10.7]} 26. Rf1
{[%clk 0:01:09.3]} 26... g6 {[%clk 0:02:10.1]} 27. Rh4 {[%clk 0:01:07.7]} 27...
Kc7 {[%clk 0:02:10.3]} 28. Rf4 {[%clk 0:01:07.1]} 28... Rxf4 {[%clk 0:02:07.4]}
29. gxf4 {[%clk 0:01:06.6]} 29... Kd6 {[%clk 0:02:07.5]} 30. Rc1 {[%clk
0:00:57.4]} 30... b6 {[%clk 0:02:07.1]} 31. b4 {[%clk 0:00:53.7]} 31... Ra8
{[%clk 0:02:05]} 32. Rb1 {[%clk 0:00:27.5]} 32... a5 {[%clk 0:02:01.3]} 33. b5
{[%clk 0:00:20.6]} 33... a4 {[%clk 0:01:43.2]} 34. a3 {[%clk 0:00:15.4]} 34...
c5 {[%clk 0:01:35.6]} 35. Kc3 {[%clk 0:00:12.7]} 35... Rc8 {[%clk 0:01:27.2]}
36. Rb2 {[%clk 0:00:09]} 36... f6 {[%clk 0:01:23.4]} 37. Kd3 {[%clk 0:00:08.5]}
37... g5 {[%clk 0:01:21.4]} 38. fxg5 {[%clk 0:00:07.9]} 38... fxg5 {[%clk
0:01:21.5]} 39. f3 {[%clk 0:00:08]} 39... h4 {[%clk 0:01:13.5]} 40. Rb1 {[%clk
0:00:08.2]} 40... Rf8 {[%clk 0:01:04.7]} 41. Rh1 {[%clk 0:00:06.8]} 41... Rf7
{[%clk 0:00:45.3]} 42. Rh2 {[%clk 0:00:06.4]} 42... cxd4 {[%clk 0:00:25.3]} 43.
exd4 {[%clk 0:00:04.3]} 43... Ke6 {[%clk 0:00:20.7]} 44. Rh1 {[%clk 0:00:04.7]}
44... Kf5 {[%clk 0:00:19.1]} 45. Re1 {[%clk 0:00:04.9]} 45... Kf4 {[%clk
0:00:19.4]} 46. Re5 {[%clk 0:00:05.1]} 46... Rg7 {[%clk 0:00:17.6]} 47. Rxd5
{[%clk 0:00:04.7]} 47... Kg3 {[%clk 0:00:17.9]} 48. Ke3 {[%clk 0:00:02.1]} 48...
Kxg2 {[%clk 0:00:16.1]} 49. f4 {[%clk 0:00:02]} 49... h3 {[%clk 0:00:12.1]} 50.
Rxg5+ {[%clk 0:00:01]} 50... Rxg5 {[%clk 0:00:12.1]} 51. fxg5 {[%clk 0:00:01.9]}
51... h2 {[%clk 0:00:12.4]} 0-1

[Event "Early-Titled-Tuesday-Blitz-May-28-2024"]
[Site "Chess.com"]
[Date "2024.05.28"]
[Round "3"]
[White "ploxoi"]
[Black "betta2004"]
[Result "0-1"]
[WhiteElo "2373"]
[BlackElo "2599"]
[TimeControl "180+1"]
[EndTime "8:29:28 PDT"]
[Termination "betta2004 won by resignation"]

1. d4 {[%clk 0:03:00.9]} 1... Nf6 {[%clk 0:02:58.6]} 2. c4 {[%clk 0:03:00.7]}
2... e6 {[%clk 0:02:58.9]} 3. g3 {[%clk 0:03:00.5]} 3... d5 {[%clk 0:02:59.4]}
4. Nf3 {[%clk 0:03:00.6]} 4... Be7 {[%clk 0:02:56.2]} 5. Bg2 {[%clk 0:03:00.5]}
5... O-O {[%clk 0:02:56.5]} 6. O-O {[%clk 0:03:01]} 6... b6 {[%clk 0:02:57]} 7.
cxd5 {[%clk 0:03:00.7]} 7... exd5 {[%clk 0:02:57.1]} 8. Nc3 {[%clk 0:03:00.8]}
8... Bb7 {[%clk 0:02:57.5]} 9. Ne5 {[%clk 0:03:01.3]} 9... Ne4 {[%clk
0:02:57.9]} 10. Nxe4 {[%clk 0:02:53.8]} 10... dxe4 {[%clk 0:02:58.8]} 11. Be3
{[%clk 0:02:36.4]} 11... Nd7 {[%clk 0:02:54.5]} 12. Qc2 {[%clk 0:02:36.5]} 12...
Nf6 {[%clk 0:02:33.8]} 13. Nc6 {[%clk 0:02:33.9]} 13... Qd6 {[%clk 0:02:29.3]}
14. Rac1 {[%clk 0:02:28.9]} 14... Rfe8 {[%clk 0:02:22.4]} 15. Rfd1 {[%clk
0:02:24.1]} 15... Bf8 {[%clk 0:02:19.9]} 16. Bf4 {[%clk 0:02:20.3]} 16... Qxc6
{[%clk 0:02:07.4]} 17. Qxc6 {[%clk 0:02:21.2]} 17... Bxc6 {[%clk 0:02:08.3]} 18.
Rxc6 {[%clk 0:02:22.1]} 18... Nd5 {[%clk 0:02:08.3]} 19. Bd2 {[%clk 0:02:16.1]}
19... f5 {[%clk 0:01:59.2]} 20. Rdc1 {[%clk 0:02:12.9]} 20... Rad8 {[%clk
0:01:58.3]} 21. e3 {[%clk 0:02:12.7]} 21... Bd6 {[%clk 0:01:58]} 22. Bh3 {[%clk
0:02:12.6]} 22... g6 {[%clk 0:01:57.9]} 23. Bf1 {[%clk 0:02:13.3]} 23... Kg7
{[%clk 0:01:57.2]} 24. Bb5 {[%clk 0:02:11.6]} 24... Rf8 {[%clk 0:01:56]} 25. a3
{[%clk 0:02:11.5]} 25... a5 {[%clk 0:01:55.1]} 26. h4 {[%clk 0:02:11.1]} 26...
h6 {[%clk 0:01:55.1]} 27. R6c2 {[%clk 0:02:03.6]} 27... g5 {[%clk 0:01:53.2]}
28. Bc4 {[%clk 0:02:00.6]} 28... Nf6 {[%clk 0:01:42.8]} 29. hxg5 {[%clk
0:02:00]} 29... hxg5 {[%clk 0:01:43.7]} 30. Kg2 {[%clk 0:01:50.1]} 30... Rh8
{[%clk 0:01:41.8]} 31. Be6 {[%clk 0:01:48.4]} 31... Kg6 {[%clk 0:01:41.6]} 32.
Rh1 {[%clk 0:01:20.5]} 32... Rxh1 {[%clk 0:01:40.4]} 33. Kxh1 {[%clk 0:01:21.4]}
33... Rh8+ {[%clk 0:01:40.5]} 34. Kg1 {[%clk 0:01:22]} 34... Ng4 {[%clk
0:01:38.9]} 35. b4 {[%clk 0:01:13.4]} 35... a4 {[%clk 0:01:30.2]} 36. Bd7 {[%clk
0:01:00.3]} 36... Nh2 {[%clk 0:01:26.6]} 37. Bxa4 {[%clk 0:00:25.7]} 37... Nf3+
{[%clk 0:01:25.4]} 38. Kg2 {[%clk 0:00:26.3]} 38... Rh2+ {[%clk 0:01:24.2]} 39.
Kf1 {[%clk 0:00:26.7]} 39... Bxg3 {[%clk 0:01:08.6]} 40. Be8+ {[%clk 0:00:20.9]}
40... Kg7 {[%clk 0:00:58.9]} 41. Bc3 {[%clk 0:00:11.6]} 41... Bd6 {[%clk
0:00:35.3]} 42. d5+ {[%clk 0:00:09.1]} 42... Kf8 {[%clk 0:00:35.1]} 43. Bg6
{[%clk 0:00:09.8]} 43... Nh4 {[%clk 0:00:26.4]} 44. Bh7 {[%clk 0:00:07.7]} 44...
g4 {[%clk 0:00:20.9]} 45. Bf6 {[%clk 0:00:07.1]} 45... Nf3 {[%clk 0:00:12.3]}
46. Ke2 {[%clk 0:00:04.6]} 46... Rh1 {[%clk 0:00:12]} 47. Bc3 {[%clk 0:00:04.8]}
47... Rxh7 {[%clk 0:00:08.8]} 48. Rc1 {[%clk 0:00:05.3]} 48... Rh2 {[%clk
0:00:08.1]} 49. Rf1 {[%clk 0:00:02.7]} 49... g3 {[%clk 0:00:08.4]} 50. a4 {[%clk
0:00:02.4]} 50... g2 {[%clk 0:00:08.8]} 51. Rd1 {[%clk 0:00:02.4]} 0-1